[Event "*** Titled Tuesday Blitz"]
[Site "Chess.com"]
[Date "2020.05.26"]
[Round "1"]
[White "TargetA"]
[Black "mohssenbinaddi"]
[Result "1-0"]
[WhiteElo "2544"]
[BlackElo "2192"]
[TimeControl "180+1"]
[EndTime "10:08:11 PDT"]
[Termination "TargetA won by checkmate"]

1. e4 {[%clk 0:03:00.1]} 1... c6 {[%clk 0:03:00]} 2. d4 {[%clk 0:02:58.2]} 2...
d5 {[%clk 0:03:00.9]} 3. Nc3 {[%clk 0:02:57.5]} 3... dxe4 {[%clk 0:02:59.9]} 4.
Nxe4 {[%clk 0:02:58]} 4... Bf5 {[%clk 0:03:00.5]} 5. Ng3 {[%clk 0:02:58.1]} 5...
Bg6 {[%clk 0:03:01]} 6. h4 {[%clk 0:02:56.2]} 6... h6 {[%clk 0:03:01.4]} 7. Nf3
{[%clk 0:02:55.3]} 7... Nd7 {[%clk 0:03:01.5]} 8. h5 {[%clk 0:02:55]} 8... Bh7
{[%clk 0:03:02]} 9. Bd3 {[%clk 0:02:55.7]} 9... Bxd3 {[%clk 0:03:02.6]} 10. Qxd3
{[%clk 0:02:56.5]} 10... e6 {[%clk 0:03:03.5]} 11. Bd2 {[%clk 0:02:56.7]} 11...
Qc7 {[%clk 0:03:03.5]} 12. O-O-O {[%clk 0:02:57.1]} 12... O-O-O {[%clk
0:03:04.4]} 13. Kb1 {[%clk 0:02:55.3]} 13... Ngf6 {[%clk 0:03:03.7]} 14. c4
{[%clk 0:02:53]} 14... Bd6 {[%clk 0:03:01.5]} 15. Ne4 {[%clk 0:02:51.8]} 15...
Nxe4 {[%clk 0:03:00.2]} 16. Qxe4 {[%clk 0:02:52.7]} 16... Nf6 {[%clk 0:03:01.1]}
17. Qe2 {[%clk 0:02:52.7]} 17... c5 {[%clk 0:03:00.8]} 18. Bc3 {[%clk
0:02:49.7]} 18... cxd4 {[%clk 0:02:57.5]} 19. Nxd4 {[%clk 0:02:50.6]} 19... a6
{[%clk 0:02:58]} 20. Rc1 {[%clk 0:02:41.8]} 20... Bf4 {[%clk 0:02:52.9]} 21. Rc2
{[%clk 0:02:39.5]} 21... Qe5 {[%clk 0:02:50.3]} 22. Qxe5 {[%clk 0:02:26.5]}
22... Bxe5 {[%clk 0:02:49.6]} 23. Nxe6 {[%clk 0:02:26.2]} 23... fxe6 {[%clk
0:02:06.6]} 24. Bxe5 {[%clk 0:02:23.2]} 24... Rd7 {[%clk 0:02:06.4]} 25. c5
{[%clk 0:02:14]} 25... Rd5 {[%clk 0:01:57.2]} 26. f4 {[%clk 0:01:42.7]} 26...
Rhd8 {[%clk 0:01:55]} 27. c6 {[%clk 0:01:34.2]} 27... b5 {[%clk 0:01:54.1]} 28.
c7 {[%clk 0:01:32.1]} 28... R8d7 {[%clk 0:01:53.1]} 29. Rc6 {[%clk 0:01:31.7]}
29... Ng4 {[%clk 0:01:34.5]} 30. Rxe6 {[%clk 0:01:20.9]} 30... Nxe5 {[%clk
0:01:33.5]} 31. Rxe5 {[%clk 0:01:17.3]} 31... Rxe5 {[%clk 0:01:26.9]} 32. fxe5
{[%clk 0:01:18.2]} 32... Kxc7 {[%clk 0:01:25.6]} 33. Kc2 {[%clk 0:01:12.3]}
33... Rd5 {[%clk 0:01:21.9]} 34. Re1 {[%clk 0:01:10.1]} 34... Kd7 {[%clk
0:01:21.6]} 35. Kc3 {[%clk 0:01:07.2]} 35... a5 {[%clk 0:01:21.2]} 36. Re4
{[%clk 0:00:57]} 36... Ke6 {[%clk 0:01:18.4]} 37. a4 {[%clk 0:00:55.1]} 37...
Rc5+ {[%clk 0:01:03]} 38. Kb3 {[%clk 0:00:49.7]} 38... b4 {[%clk 0:00:50.4]} 39.
g4 {[%clk 0:00:45.7]} 39... Rxe5 {[%clk 0:00:30.9]} 40. Rxe5+ {[%clk 0:00:39.1]}
40... Kxe5 {[%clk 0:00:31.2]} 41. Kc4 {[%clk 0:00:39.7]} 41... Kf4 {[%clk
0:00:31.7]} 42. Kb5 {[%clk 0:00:40.2]} 42... Kxg4 {[%clk 0:00:29.5]} 43. Kxa5
{[%clk 0:00:41.1]} 43... Kxh5 {[%clk 0:00:30.1]} 44. Kxb4 {[%clk 0:00:41.5]}
44... g5 {[%clk 0:00:30.7]} 45. Kc3 {[%clk 0:00:34.6]} 45... g4 {[%clk
0:00:27.4]} 46. Kd2 {[%clk 0:00:34.8]} 46... Kh4 {[%clk 0:00:23.1]} 47. Ke2
{[%clk 0:00:30.5]} 47... Kh3 {[%clk 0:00:20.7]} 48. a5 {[%clk 0:00:27.3]} 48...
g3 {[%clk 0:00:20.4]} 49. a6 {[%clk 0:00:27.4]} 49... g2 {[%clk 0:00:20]} 50. a7
{[%clk 0:00:27.8]} 50... g1=Q {[%clk 0:00:18.1]} 51. a8=Q {[%clk 0:00:28.7]}
51... Qg2+ {[%clk 0:00:16.8]} 52. Qxg2+ {[%clk 0:00:27.7]} 52... Kxg2 {[%clk
0:00:17.7]} 53. b4 {[%clk 0:00:27.7]} 53... h5 {[%clk 0:00:18.3]} 54. b5 {[%clk
0:00:28.1]} 54... h4 {[%clk 0:00:19]} 55. b6 {[%clk 0:00:28.5]} 55... h3 {[%clk
0:00:19.7]} 56. b7 {[%clk 0:00:28.9]} 56... h2 {[%clk 0:00:20.4]} 57. b8=Q
{[%clk 0:00:28.1]} 57... h1=Q {[%clk 0:00:20.2]} 58. Qg8+ {[%clk 0:00:25.5]}
58... Kh2 {[%clk 0:00:16.4]} 59. Qh8+ {[%clk 0:00:20.7]} 59... Kg1 {[%clk
0:00:16.1]} 60. Qd4+ {[%clk 0:00:20.4]} 60... Kh2 {[%clk 0:00:12]} 61. Qh4+
{[%clk 0:00:20.2]} 61... Kg1 {[%clk 0:00:11.4]} 62. Qf2# {[%clk 0:00:20]} 1-0

[Event "*** Titled Tuesday Blitz"]
[Site "Chess.com"]
[Date "2020.05.26"]
[Round "1"]
[White "CaspiIsrael"]
[Black "Chuchofrio1"]
[Result "1-0"]
[WhiteElo "2618"]
[BlackElo "2284"]
[TimeControl "180+1"]
[EndTime "10:08:12 PDT"]
[Termination "CaspiIsrael won by checkmate"]

1. e4 {[%clk 0:03:00.9]} 1... e5 {[%clk 0:02:59.5]} 2. Nf3 {[%clk 0:03:00.1]}
2... Nc6 {[%clk 0:02:59.6]} 3. Bb5 {[%clk 0:02:59.9]} 3... a6 {[%clk 0:02:59.2]}
4. Ba4 {[%clk 0:02:59.8]} 4... Nf6 {[%clk 0:02:59.2]} 5. O-O {[%clk 0:02:59.3]}
5... Be7 {[%clk 0:02:59.3]} 6. Re1 {[%clk 0:02:58.7]} 6... b5 {[%clk 0:02:58.9]}
7. Bb3 {[%clk 0:02:58.6]} 7... O-O {[%clk 0:02:59.6]} 8. c3 {[%clk 0:02:58.6]}
8... d5 {[%clk 0:02:59.3]} 9. exd5 {[%clk 0:02:59.5]} 9... Nxd5 {[%clk
0:02:59.9]} 10. Nxe5 {[%clk 0:02:59.4]} 10... Nxe5 {[%clk 0:03:00.8]} 11. Rxe5
{[%clk 0:02:59.6]} 11... c6 {[%clk 0:03:01.5]} 12. d3 {[%clk 0:02:59.7]} 12...
Bd6 {[%clk 0:03:01.8]} 13. Re1 {[%clk 0:02:59.5]} 13... Qh4 {[%clk 0:03:02]} 14.
g3 {[%clk 0:02:58.8]} 14... Qh3 {[%clk 0:03:02.6]} 15. Qf3 {[%clk 0:02:58.1]}
15... Bg4 {[%clk 0:03:03.1]} 16. Qg2 {[%clk 0:02:56.2]} 16... Qh5 {[%clk
0:03:03.6]} 17. Nd2 {[%clk 0:02:41.9]} 17... Rae8 {[%clk 0:03:03.1]} 18. Re4
{[%clk 0:02:35.9]} 18... f5 {[%clk 0:02:47]} 19. Rxe8 {[%clk 0:02:27.7]} 19...
Rxe8 {[%clk 0:02:47.9]} 20. Bxd5+ {[%clk 0:02:28]} 20... cxd5 {[%clk 0:02:48.8]}
21. Qxd5+ {[%clk 0:02:28.1]} 21... Kh8 {[%clk 0:02:46.6]} 22. Nf1 {[%clk
0:02:09.4]} 22... Bb8 {[%clk 0:02:31.9]} 23. Bf4 {[%clk 0:01:36.1]} 23... Bxf4
{[%clk 0:02:28.5]} 24. gxf4 {[%clk 0:01:35.5]} 24... Bf3 {[%clk 0:02:28.7]} 25.
Qd7 {[%clk 0:01:32.4]} 25... Rg8 {[%clk 0:02:23.2]} 26. Ne3 {[%clk 0:01:21.4]}
26... Rf8 {[%clk 0:01:58.7]} 27. Qe7 {[%clk 0:01:17.2]} 27... Re8 {[%clk
0:01:52.5]} 28. Qg5 {[%clk 0:01:12.4]} 28... Qh3 {[%clk 0:01:17.3]} 29. Nxf5
{[%clk 0:00:54.1]} 29... Rg8 {[%clk 0:00:59.8]} 30. Nd4 {[%clk 0:00:42.9]} 30...
Ba8 {[%clk 0:00:58.2]} 31. Qg3 {[%clk 0:00:41.4]} 31... Qc8 {[%clk 0:00:56.9]}
32. Re1 {[%clk 0:00:41.3]} 32... Qb7 {[%clk 0:00:52.7]} 33. f3 {[%clk
0:00:41.1]} 33... b4 {[%clk 0:00:51.8]} 34. f5 {[%clk 0:00:31.8]} 34... bxc3
{[%clk 0:00:50]} 35. bxc3 {[%clk 0:00:32.7]} 35... Qb2 {[%clk 0:00:48.6]} 36.
Qc7 {[%clk 0:00:20.4]} 36... Qxa2 {[%clk 0:00:38.4]} 37. Re7 {[%clk 0:00:16.7]}
37... Qb1+ {[%clk 0:00:33.5]} 38. Kg2 {[%clk 0:00:16.7]} 38... Qxd3 {[%clk
0:00:32.3]} 39. Qe5 {[%clk 0:00:14.5]} 39... Qxc3 {[%clk 0:00:16.5]} 40. Kg3
{[%clk 0:00:14.7]} 40... Qc8 {[%clk 0:00:08.1]} 41. h4 {[%clk 0:00:12.3]} 41...
Qd8 {[%clk 0:00:08.5]} 42. h5 {[%clk 0:00:11.3]} 42... Qb8 {[%clk 0:00:08.9]}
43. f4 {[%clk 0:00:08.8]} 43... Qxe5 {[%clk 0:00:06.5]} 44. fxe5 {[%clk
0:00:09.7]} 44... a5 {[%clk 0:00:07]} 45. Ra7 {[%clk 0:00:09.9]} 45... a4 {[%clk
0:00:06.9]} 46. Rxa4 {[%clk 0:00:09.7]} 46... Bd5 {[%clk 0:00:07.5]} 47. Ra5
{[%clk 0:00:09.4]} 47... Be4 {[%clk 0:00:07.1]} 48. Kf4 {[%clk 0:00:09.4]} 48...
Bd3 {[%clk 0:00:06.9]} 49. e6 {[%clk 0:00:09.7]} 49... g6 {[%clk 0:00:06.6]} 50.
hxg6 {[%clk 0:00:08.4]} 50... hxg6 {[%clk 0:00:07.5]} 51. f6 {[%clk 0:00:08.8]}
51... g5+ {[%clk 0:00:07]} 52. Rxg5 {[%clk 0:00:08.3]} 52... Rf8 {[%clk
0:00:05.7]} 53. Ke5 {[%clk 0:00:08]} 53... Ba6 {[%clk 0:00:01]} 54. e7 {[%clk
0:00:08.3]} 54... Ra8 {[%clk 0:00:01.8]} 55. f7 {[%clk 0:00:08.1]} 55... Bb7
{[%clk 0:00:02.7]} 56. Kf6 {[%clk 0:00:07.3]} 56... Rf8 {[%clk 0:00:03.6]} 57.
Rh5# {[%clk 0:00:07]} 1-0

[Event "*** Titled Tuesday Blitz"]
[Site "Chess.com"]
[Date "2020.05.26"]
[Round "1"]
[White "FMalexhdez"]
[Black "Grebeniuk-S"]
[Result "0-1"]
[WhiteElo "2060"]
[BlackElo "2488"]
[TimeControl "180+1"]
[EndTime "10:08:13 PDT"]
[Termination "Grebeniuk-S won on time"]

1. e4 {[%clk 0:02:58.1]} 1... c5 {[%clk 0:02:58.4]} 2. Nf3 {[%clk 0:02:57.3]}
2... g6 {[%clk 0:02:58]} 3. d4 {[%clk 0:02:57.3]} 3... cxd4 {[%clk 0:02:58.8]}
4. Nxd4 {[%clk 0:02:57.3]} 4... Bg7 {[%clk 0:02:58.9]} 5. Nc3 {[%clk 0:02:57.7]}
5... Nc6 {[%clk 0:02:58.7]} 6. Nb3 {[%clk 0:02:57.7]} 6... Nf6 {[%clk
0:02:58.3]} 7. Be2 {[%clk 0:02:57.5]} 7... O-O {[%clk 0:02:58.1]} 8. O-O {[%clk
0:02:58]} 8... d6 {[%clk 0:02:55.3]} 9. Re1 {[%clk 0:02:58]} 9... Be6 {[%clk
0:02:54.7]} 10. Bf1 {[%clk 0:02:56.7]} 10... Rc8 {[%clk 0:02:53.8]} 11. Nd5
{[%clk 0:02:54.2]} 11... Ne5 {[%clk 0:02:40.1]} 12. Bg5 {[%clk 0:02:49.9]} 12...
Nxd5 {[%clk 0:02:05.9]} 13. exd5 {[%clk 0:02:45]} 13... Bf5 {[%clk 0:02:05.6]}
14. c3 {[%clk 0:02:36.8]} 14... h6 {[%clk 0:02:04.7]} 15. Bh4 {[%clk 0:02:33.2]}
15... g5 {[%clk 0:02:04.2]} 16. Bg3 {[%clk 0:02:33]} 16... Nc4 {[%clk
0:01:56.2]} 17. Bxc4 {[%clk 0:02:28.8]} 17... Rxc4 {[%clk 0:01:55.3]} 18. Qe2
{[%clk 0:02:10]} 18... Rc7 {[%clk 0:01:44.5]} 19. Rad1 {[%clk 0:02:03]} 19... a6
{[%clk 0:01:41.8]} 20. h4 {[%clk 0:02:01.9]} 20... Bf6 {[%clk 0:01:10.5]} 21.
Nd4 {[%clk 0:01:54.3]} 21... Bg6 {[%clk 0:01:09.8]} 22. hxg5 {[%clk 0:01:31.5]}
22... hxg5 {[%clk 0:01:09.2]} 23. f4 {[%clk 0:01:31.7]} 23... gxf4 {[%clk
0:01:04.6]} 24. Bxf4 {[%clk 0:01:30.1]} 24... Qd7 {[%clk 0:01:00.9]} 25. Bh6
{[%clk 0:01:22.5]} 25... Rfc8 {[%clk 0:01:00.2]} 26. Rf1 {[%clk 0:01:04.9]}
26... Rc5 {[%clk 0:00:54.9]} 27. Qf3 {[%clk 0:00:57.7]} 27... b5 {[%clk
0:00:28.4]} 28. Ne2 {[%clk 0:00:36.2]} 28... Rc4 {[%clk 0:00:24.2]} 29. Nf4
{[%clk 0:00:35]} 29... Rxf4 {[%clk 0:00:20.6]} 30. Bxf4 {[%clk 0:00:33.1]} 30...
Rc4 {[%clk 0:00:20.1]} 31. Be3 {[%clk 0:00:26.5]} 31... Qg4 {[%clk 0:00:13.6]}
32. Bd4 {[%clk 0:00:21.3]} 32... Bxd4+ {[%clk 0:00:10.3]} 33. cxd4 {[%clk
0:00:19.2]} 33... Rxd4 {[%clk 0:00:09.5]} 34. Qxg4 {[%clk 0:00:18.3]} 34... Rxg4
{[%clk 0:00:08.6]} 35. Rf3 {[%clk 0:00:12.6]} 35... Be4 {[%clk 0:00:08.4]} 36.
Rf2 {[%clk 0:00:10.2]} 36... f5 {[%clk 0:00:08.6]} 37. Rd4 {[%clk 0:00:05.8]}
37... Kf7 {[%clk 0:00:08.1]} 38. a4 {[%clk 0:00:05.6]} 38... Kf6 {[%clk
0:00:07.1]} 39. axb5 {[%clk 0:00:04.9]} 39... axb5 {[%clk 0:00:08]} 40. Rb4
{[%clk 0:00:05]} 40... Ke5 {[%clk 0:00:08.6]} 41. Rxb5 {[%clk 0:00:05.1]} 41...
Rg3 {[%clk 0:00:09]} 42. b4 {[%clk 0:00:04.4]} 42... Rb3 {[%clk 0:00:08.9]} 43.
Rb7 {[%clk 0:00:03.6]} 43... Rb1+ {[%clk 0:00:09.2]} 44. Kh2 {[%clk 0:00:03.1]}
44... Bxd5 {[%clk 0:00:09.7]} 45. Rxe7+ {[%clk 0:00:01.6]} 45... Kf6 {[%clk
0:00:09.5]} 46. Rd7 {[%clk 0:00:02.1]} 46... Be4 {[%clk 0:00:10.1]} 47. Rxd6+
{[%clk 0:00:02.1]} 47... Ke5 {[%clk 0:00:11]} 48. Rd8 {[%clk 0:00:02.2]} 48...
Rxb4 {[%clk 0:00:11.2]} 49. Re8+ {[%clk 0:00:02.3]} 49... Kf6 {[%clk 0:00:12.1]}
50. Rf8+ {[%clk 0:00:02.3]} 50... Ke5 {[%clk 0:00:12.3]} 0-1

[Event "*** Titled Tuesday Blitz"]
[Site "Chess.com"]
[Date "2020.05.26"]
[Round "1"]
[White "Colombiano07"]
[Black "AlexOstrovskiy"]
[Result "0-1"]
[WhiteElo "2269"]
[BlackElo "2607"]
[TimeControl "180+1"]
[EndTime "10:08:16 PDT"]
[Termination "AlexOstrovskiy won by resignation"]

1. e4 {[%clk 0:03:00.7]} 1... c6 {[%clk 0:02:58.1]} 2. d4 {[%clk 0:02:59.6]}
2... d5 {[%clk 0:02:59]} 3. Nc3 {[%clk 0:03:00.1]} 3... dxe4 {[%clk 0:02:57.2]}
4. Nxe4 {[%clk 0:03:01]} 4... Nf6 {[%clk 0:02:57.1]} 5. Nxf6+ {[%clk 0:03:01.1]}
5... exf6 {[%clk 0:02:58]} 6. c3 {[%clk 0:03:00]} 6... Bd6 {[%clk 0:02:58.3]} 7.
Bd3 {[%clk 0:03:00]} 7... O-O {[%clk 0:02:59.2]} 8. Ne2 {[%clk 0:03:00]} 8...
Re8 {[%clk 0:03:00.1]} 9. O-O {[%clk 0:03:00.2]} 9... Nd7 {[%clk 0:02:57.5]} 10.
Bf4 {[%clk 0:02:55.2]} 10... Nf8 {[%clk 0:02:33.7]} 11. Bxd6 {[%clk 0:02:54.6]}
11... Qxd6 {[%clk 0:02:34.6]} 12. Re1 {[%clk 0:02:54.8]} 12... g6 {[%clk
0:02:02]} 13. Qd2 {[%clk 0:02:34]} 13... Kg7 {[%clk 0:01:56]} 14. Qf4 {[%clk
0:02:29.3]} 14... Qd8 {[%clk 0:01:42.8]} 15. Ng3 {[%clk 0:02:15.2]} 15... Ne6
{[%clk 0:01:41.2]} 16. Qf3 {[%clk 0:02:09.5]} 16... f5 {[%clk 0:01:29.8]} 17.
Bc4 {[%clk 0:02:03.9]} 17... Bd7 {[%clk 0:01:27.6]} 18. Re5 {[%clk 0:01:49.6]}
18... f6 {[%clk 0:00:48.5]} 19. Ree1 {[%clk 0:01:45.5]} 19... Ng5 {[%clk
0:00:47.4]} 20. Qd3 {[%clk 0:01:43.5]} 20... Qc7 {[%clk 0:00:44.4]} 21. Ne2
{[%clk 0:01:26.3]} 21... Re7 {[%clk 0:00:39]} 22. Qg3 {[%clk 0:01:25.3]} 22...
Qxg3 {[%clk 0:00:27.4]} 23. Nxg3 {[%clk 0:01:26.2]} 23... Rae8 {[%clk
0:00:27.7]} 24. Rxe7+ {[%clk 0:01:20.2]} 24... Rxe7 {[%clk 0:00:28.6]} 25. Bd3
{[%clk 0:01:15.9]} 25... f4 {[%clk 0:00:27.8]} 26. Nf1 {[%clk 0:01:12.5]} 26...
f3 {[%clk 0:00:28.1]} 27. Nd2 {[%clk 0:00:58.9]} 27... fxg2 {[%clk 0:00:27]} 28.
Kxg2 {[%clk 0:00:59.8]} 28... Bh3+ {[%clk 0:00:16.1]} 29. Kg1 {[%clk 0:00:57]}
29... h5 {[%clk 0:00:14.5]} 30. Bf1 {[%clk 0:00:55.9]} 30... Bxf1 {[%clk
0:00:12.9]} 31. Kxf1 {[%clk 0:00:56.8]} 31... Kf7 {[%clk 0:00:08.7]} 32. Re1
{[%clk 0:00:55.9]} 32... Rxe1+ {[%clk 0:00:07.5]} 33. Kxe1 {[%clk 0:00:56.8]}
33... Ke6 {[%clk 0:00:08.1]} 34. Ke2 {[%clk 0:00:57.2]} 34... Kf5 {[%clk
0:00:06.3]} 35. Nc4 {[%clk 0:00:54.2]} 35... Kf4 {[%clk 0:00:04.4]} 36. Nd6
{[%clk 0:00:53.2]} 36... Nf3 {[%clk 0:00:04.4]} 37. Nxb7 {[%clk 0:00:45.2]}
37... Nxh2 {[%clk 0:00:04.6]} 38. Nd8 {[%clk 0:00:45.7]} 38... h4 {[%clk
0:00:04.7]} 39. Nxc6 {[%clk 0:00:45.5]} 39... h3 {[%clk 0:00:05.2]} 40. Ne7
{[%clk 0:00:29.1]} 40... g5 {[%clk 0:00:05.3]} 41. Nd5+ {[%clk 0:00:28.1]} 41...
Kf5 {[%clk 0:00:04.5]} 42. f3 {[%clk 0:00:26]} 42... g4 {[%clk 0:00:04.2]} 43.
fxg4+ {[%clk 0:00:26.1]} 43... Nxg4 {[%clk 0:00:05.1]} 44. Kf3 {[%clk 0:00:22]}
44... h2 {[%clk 0:00:04.9]} 45. Kg2 {[%clk 0:00:22.3]} 45... Ke4 {[%clk
0:00:05.5]} 46. Nxf6+ {[%clk 0:00:17.9]} 46... Nxf6 {[%clk 0:00:06.4]} 47. Kxh2
{[%clk 0:00:18.5]} 47... Kd3 {[%clk 0:00:05.6]} 48. Kg3 {[%clk 0:00:17.8]} 48...
Kc2 {[%clk 0:00:05.7]} 49. c4 {[%clk 0:00:17.7]} 49... Kxb2 {[%clk 0:00:05.8]}
50. c5 {[%clk 0:00:17.9]} 50... Kc3 {[%clk 0:00:05.4]} 51. c6 {[%clk 0:00:17.6]}
51... Nd5 {[%clk 0:00:05.7]} 52. Kf3 {[%clk 0:00:15.2]} 52... Kxd4 {[%clk
0:00:05.9]} 53. Ke2 {[%clk 0:00:15.7]} 53... Nc7 {[%clk 0:00:06.8]} 54. Kd2
{[%clk 0:00:16.1]} 54... Kc5 {[%clk 0:00:07.7]} 55. Kc3 {[%clk 0:00:16.6]} 55...
Kxc6 {[%clk 0:00:08.6]} 56. Kb4 {[%clk 0:00:17.1]} 56... Kb6 {[%clk 0:00:09]}
57. Ka4 {[%clk 0:00:17.3]} 57... Na6 {[%clk 0:00:09.9]} 58. Kb3 {[%clk
0:00:17.4]} 58... Nc5+ {[%clk 0:00:10.8]} 59. Kb4 {[%clk 0:00:17.6]} 59... a5+
{[%clk 0:00:11.7]} 60. Ka3 {[%clk 0:00:17.4]} 60... Kb5 {[%clk 0:00:12.6]} 61.
Kb2 {[%clk 0:00:17.5]} 61... Kb4 {[%clk 0:00:12.3]} 62. Kc2 {[%clk 0:00:17.3]}
62... Ka3 {[%clk 0:00:10.9]} 63. Kb1 {[%clk 0:00:17.7]} 63... Ne4 {[%clk
0:00:09.4]} 64. Ka1 {[%clk 0:00:17.6]} 64... a4 {[%clk 0:00:09.7]} 65. Kb1
{[%clk 0:00:18.5]} 65... Nc3+ {[%clk 0:00:10.1]} 66. Ka1 {[%clk 0:00:19.4]}
66... Nxa2 {[%clk 0:00:10.4]} 67. Kb1 {[%clk 0:00:20.3]} 67... Nb4 {[%clk
0:00:10.8]} 68. Ka1 {[%clk 0:00:21.2]} 68... Kb3 {[%clk 0:00:11.2]} 69. Kb1
{[%clk 0:00:20.9]} 69... a3 {[%clk 0:00:11.5]} 70. Ka1 {[%clk 0:00:21.8]} 70...
Nc2+ {[%clk 0:00:11.3]} 71. Kb1 {[%clk 0:00:22.3]} 71... a2+ {[%clk 0:00:11.9]}
0-1

[Event "*** Titled Tuesday Blitz"]
[Site "Chess.com"]
[Date "2020.05.26"]
[Round "1"]
[White "GMaka"]
[Black "Gareth-Bale11"]
[Result "1/2-1/2"]
[WhiteElo "2396"]
[BlackElo "2754"]
[TimeControl "180+1"]
[EndTime "10:08:17 PDT"]
[Termination "Game drawn by repetition"]

1. d4 {[%clk 0:03:00.9]} 1... Nf6 {[%clk 0:02:58.7]} 2. Bg5 {[%clk 0:03:00.3]}
2... d5 {[%clk 0:02:58.1]} 3. e3 {[%clk 0:02:59.6]} 3... c5 {[%clk 0:02:56.4]}
4. Bxf6 {[%clk 0:02:55.4]} 4... gxf6 {[%clk 0:02:55.8]} 5. c3 {[%clk 0:02:55.9]}
5... e6 {[%clk 0:02:55.9]} 6. Nd2 {[%clk 0:02:55.3]} 6... Nc6 {[%clk 0:02:55.8]}
7. Ngf3 {[%clk 0:02:55.2]} 7... f5 {[%clk 0:02:55]} 8. g3 {[%clk 0:02:53.8]}
8... Bd7 {[%clk 0:02:55.2]} 9. Bg2 {[%clk 0:02:53.3]} 9... Bd6 {[%clk
0:02:47.5]} 10. a3 {[%clk 0:02:47.3]} 10... c4 {[%clk 0:02:47.1]} 11. O-O {[%clk
0:02:40.5]} 11... Na5 {[%clk 0:02:46.2]} 12. b4 {[%clk 0:02:38.3]} 12... cxb3
{[%clk 0:02:46]} 13. Nxb3 {[%clk 0:02:38.6]} 13... Nc4 {[%clk 0:02:42.8]} 14.
Nfd2 {[%clk 0:02:36]} 14... Nxd2 {[%clk 0:02:40]} 15. Nxd2 {[%clk 0:02:32.6]}
15... Rc8 {[%clk 0:02:36.3]} 16. Qb3 {[%clk 0:02:29.1]} 16... Qb6 {[%clk
0:02:22.7]} 17. Qxb6 {[%clk 0:02:07.7]} 17... axb6 {[%clk 0:02:23.6]} 18. Rfb1
{[%clk 0:02:06.5]} 18... b5 {[%clk 0:02:23.6]} 19. Bf1 {[%clk 0:02:05.9]} 19...
Rxc3 {[%clk 0:02:20.1]} 20. Bxb5 {[%clk 0:02:05.8]} 20... Rc7 {[%clk 0:02:16.9]}
21. a4 {[%clk 0:02:02]} 21... Ke7 {[%clk 0:02:14.1]} 22. Bxd7 {[%clk 0:01:59]}
22... Kxd7 {[%clk 0:02:15]} 23. a5 {[%clk 0:01:52.1]} 23... Ra8 {[%clk 0:02:14]}
24. Rb5 {[%clk 0:01:48.1]} 24... Kc8 {[%clk 0:02:05.7]} 25. Rab1 {[%clk
0:01:42.9]} 25... Ra6 {[%clk 0:02:05.7]} 26. Nf3 {[%clk 0:01:36.9]} 26... f6
{[%clk 0:02:04.4]} 27. Ne1 {[%clk 0:01:34.9]} 27... Rac6 {[%clk 0:02:04]} 28.
Nd3 {[%clk 0:01:34.5]} 28... Rc3 {[%clk 0:02:03.7]} 29. Rb6 {[%clk 0:01:16]}
29... R7c6 {[%clk 0:01:50.8]} 30. Nc5 {[%clk 0:00:51.6]} 30... Bxc5 {[%clk
0:01:23.7]} 31. dxc5 {[%clk 0:00:49.8]} 31... R3xc5 {[%clk 0:01:24.6]} 32. Rxb7
{[%clk 0:00:49.7]} 32... Rc1+ {[%clk 0:01:24.7]} 33. Kg2 {[%clk 0:00:47.2]}
33... Rxb1 {[%clk 0:01:24.9]} 34. Rxb1 {[%clk 0:00:47.6]} 34... Ra6 {[%clk
0:01:25.8]} 35. Rb5 {[%clk 0:00:45.2]} 35... Kc7 {[%clk 0:01:25.7]} 36. h4
{[%clk 0:00:37.3]} 36... Kc6 {[%clk 0:01:25.7]} 37. Rb8 {[%clk 0:00:37.3]} 37...
Kd6 {[%clk 0:01:21.7]} 38. Rh8 {[%clk 0:00:34.8]} 38... Ra7 {[%clk 0:01:11.5]}
39. h5 {[%clk 0:00:34.8]} 39... e5 {[%clk 0:01:09.1]} 40. Kf3 {[%clk 0:00:35]}
40... Ke6 {[%clk 0:01:09]} 41. Rg8 {[%clk 0:00:28.9]} 41... Rxa5 {[%clk
0:00:56.9]} 42. Rg7 {[%clk 0:00:27.2]} 42... d4 {[%clk 0:00:57.3]} 43. exd4
{[%clk 0:00:24.8]} 43... exd4 {[%clk 0:00:55.5]} 44. Rxh7 {[%clk 0:00:24.5]}
44... Ra2 {[%clk 0:00:49.5]} 45. h6 {[%clk 0:00:20.4]} 45... f4 {[%clk 0:00:44]}
46. g4 {[%clk 0:00:12.9]} 46... d3 {[%clk 0:00:33.8]} 47. Rb7 {[%clk 0:00:12]}
47... d2 {[%clk 0:00:24.8]} 48. Rb1 {[%clk 0:00:06.7]} 48... Kf7 {[%clk
0:00:22.9]} 49. Rd1 {[%clk 0:00:06.1]} 49... Kg6 {[%clk 0:00:22.7]} 50. h7
{[%clk 0:00:06.6]} 50... Kxh7 {[%clk 0:00:22.6]} 51. Kxf4 {[%clk 0:00:07.5]}
51... Kg6 {[%clk 0:00:22.7]} 52. f3 {[%clk 0:00:07.6]} 52... Ra4+ {[%clk
0:00:21.2]} 53. Ke3 {[%clk 0:00:07.7]} 53... Ra3+ {[%clk 0:00:21.6]} 54. Ke2
{[%clk 0:00:07.1]} 54... f5 {[%clk 0:00:21.6]} 55. gxf5+ {[%clk 0:00:06]} 55...
Kxf5 {[%clk 0:00:22.5]} 56. Rxd2 {[%clk 0:00:06.9]} 56... Kf4 {[%clk 0:00:22.9]}
57. Rd4+ {[%clk 0:00:07]} 57... Ke5 {[%clk 0:00:22.9]} 58. Rg4 {[%clk
0:00:07.9]} 58... Kf5 {[%clk 0:00:23.1]} 59. Kf2 {[%clk 0:00:08.8]} 59... Rb3
{[%clk 0:00:22.5]} 60. Kg3 {[%clk 0:00:09.7]} 60... Ra3 {[%clk 0:00:22.9]} 61.
Rf4+ {[%clk 0:00:10.2]} 61... Kg5 {[%clk 0:00:22.4]} 62. Rf8 {[%clk 0:00:11.1]}
62... Rb3 {[%clk 0:00:22.2]} 63. Rg8+ {[%clk 0:00:11.3]} 63... Kf5 {[%clk
0:00:22.3]} 64. Rf8+ {[%clk 0:00:12.2]} 64... Kg5 {[%clk 0:00:22.7]} 65. Re8
{[%clk 0:00:12.8]} 65... Kf5 {[%clk 0:00:22.8]} 66. Rf8+ {[%clk 0:00:13]} 66...
Kg5 {[%clk 0:00:23]} 1/2-1/2